bitfinex-derivatives/quotes_ETHF0:USTF0_20250524
["timestamp","ask_amount","ask_price","bid_price","bid_amount"]
[1748067656668,1.302,2549.1,2549.0,1.46086]
[1748067656976,1.302,2549.1,2549.0,0.78446]
[1748067658767,1.302,2549.1,2548.8,0.7845]
[1748067658971,1.302,2549.1,2548.7,0.00589055]
[1748067658972,0.6471,2549.0,2548.9,0.78449]
[1748067659169,0.6471,2549.0,2548.7,0.00589055]
[1748067659372,1.3642,2548.9,2548.8,0.78452]
[1748067660381,1.3642,2548.9,2548.7,0.00589055]
[1748067660582,0.6515,2548.8,2548.7,0.00589055]
[1748067660981,1.43602,2548.8,2548.7,0.00589055]
[1748067661182,2.84722,2548.8,2548.7,0.00589055]
[1748067661383,2.0627,2548.8,2548.7,0.00589055]
[1748067662082,2.0627,2548.8,2548.7,0.79044055]
[1748067664689,1.4112,2548.8,2548.7,3.54064055]
[1748067664986,3.21369055,2549.2,2549.1,0.78443]
[1748067666084,3.21369055,2549.2,2549.0,0.78444]
[1748067666286,2.0308,2549.1,2549.0,0.78444]
[1748067666691,2.0308,2549.1,2548.9,1.31398608]
[1748067666986,2.0599,2549.0,2548.9,0.78449]
[1748067669388,2.0599,2549.0,2548.9,5.30803111]
[1748067670195,0.00589055,2549.2,2549.1,0.78443]
[1748067670589,1.30519055,2549.2,2549.1,0.78443]
[1748067670787,1.30519055,2549.2,2549.1,1.45893]
[1748067670994,1.30519055,2549.2,2549.1,2.77467111]
[1748067674301,0.00589055,2549.2,2549.1,2.77467111]
[1748067674695,0.00589055,2549.2,2549.1,4.14497111]
[1748067674890,0.00589055,2549.2,2549.1,1.31574111]
[1748067675094,0.79029055,2549.2,2549.1,1.31574111]
[1748067675599,0.00589055,2549.2,2549.1,2.10017111]
[1748067675899,1.30769055,2549.2,2549.1,2.10017111]
[1748067676405,1.30769055,2549.2,2549.1,0.78443]
[1748067681109,2.09209055,2549.2,2548.8,1.278]
[1748067681504,1.30769055,2549.2,2549.1,0.78443]
[1748067681801,1.30769055,2549.2,2549.0,0.78444]
[1748067681802,0.79030055,2549.2,2549.0,0.78444]
[1748067682001,0.79030055,2549.2,2549.1,0.78443]
[1748067682199,0.00589055,2549.2,2549.1,0.78443]
[1748067682404,0.79029055,2549.2,2549.1,0.78443]
[1748067682809,0.00589055,2549.2,2549.1,0.78443]
[1748067683604,0.79029055,2549.2,2548.8,1.278]
[1748067683808,0.00589055,2549.2,2549.1,0.78443]
[1748067684313,0.00589055,2549.2,2549.1,3.99223]
[1748067685104,0.00589055,2549.2,2549.1,6.48210905]
[1748067685606,0.00589055,2549.2,2549.1,8.41800905]
[1748067690914,0.00589055,2549.2,2549.1,23.70600905]
[1748067693226,0.00589055,2549.2,2549.1,24.34880905]
[1748067694317,0.00589055,2549.2,2549.1,9.06080905]
[1748067694622,0.00589055,2549.2,2549.1,24.34780905]
[1748067704131,0.00589055,2549.2,2549.1,9.06080905]
[1748067704433,0.00589055,2549.2,2549.1,24.34780905]
[1748067708427,1.36699055,2549.2,2549.1,24.34780905]
[1748067712733,1.36699055,2549.2,2549.1,23.06750905]
[1748067712934,1.36699055,2549.2,2549.1,22.41190905]
[1748067714428,1.36699055,2549.2,2549.1,3.27430905]
[1748067715636,1.36699055,2549.2,2549.1,2.10220035]
[1748067717439,10.35919055,2549.2,2549.1,1.31777035]
[1748067718535,10.35919055,2549.2,2549.1,2.10220035]
[1748067718737,9.57479055,2549.2,2549.1,2.10220035]
[1748067719336,6.36699055,2549.2,2549.1,2.10220035]
[1748067719935,1.36699055,2549.2,2549.1,2.10220035]
[1748067720635,0.00589055,2549.2,2549.1,2.10220035]
[1748067722731,0.00589055,2549.2,2549.1,3.42600035]
[1748067722936,0.65239481,2549.5,2549.4,0.78434]
[1748067723131,0.65239481,2549.5,2549.4,3.99214]
[1748067723631,0.65239481,2549.5,2549.4,5.30991035]
[1748067724237,0.65239481,2549.5,2549.4,6.63371035]
[1748067725539,1.3462,2549.6,2549.5,0.78431]
[1748067725739,1.3462,2549.6,2549.5,2.13951]
[1748067727040,0.00589055,2549.7,2549.6,0.78428]
[1748067727244,0.00589055,2549.7,2549.6,2.13948]
[1748067727742,1.32719055,2549.7,2549.6,2.13948]
[1748067727944,1.32719055,2549.7,2549.6,3.45725035]
[1748067728242,0.00589055,2549.7,2549.6,3.45725035]
[1748067730746,1.28229055,2549.7,2549.6,3.45725035]
[1748067732146,0.00589055,2549.7,2549.6,3.45725035]
[1748067734746,0.00589055,2549.7,2549.6,3.45235275]
[1748067737350,0.00589055,2549.7,2549.6,18.69235275]
[1748067740453,0.00589055,2549.7,2549.6,2.09715275]
[1748067741162,0.00589055,2549.7,2549.6,3.50305275]
[1748067741661,0.00589055,2549.7,2549.6,4.67842009]
[1748067743564,0.00589055,2549.7,2549.6,4.99069851]
[1748067744357,0.00589055,2549.7,2549.6,4.67842009]
[1748067748165,5.5e-07,2549.7,2549.6,4.67842009]
[1748067749060,3.2078,2550.5,2550.1,0.78412]
[1748067749363,1.345,2550.9,2550.8,0.78391]
[1748067749559,1.345,2550.9,2550.8,3.99171]
[1748067750055,1.345,2550.9,2550.8,4.67681]
[1748067750775,1.345,2550.9,2550.8,5.99458035]
[1748067751869,1.345,2550.9,2550.8,4.67681]
[1748067754164,1.345,2550.9,2550.8,6.07781]
[1748067755075,1.31088897,2551.1,2551.0,0.78385]
[1748067756474,0.00388819,2551.1,2551.0,0.78385]
[1748067764482,0.00388819,2551.1,2551.0,16.01385]
[1748067765580,0.00388819,2551.1,2551.0,0.78385]
[1748067765878,0.00388819,2551.1,2551.0,16.01385]
[1748067768480,0.00388819,2551.1,2551.0,0.78385]
[1748067770683,0.70718819,2551.1,2551.0,0.78385]
[1748067772477,7.02398819,2551.1,2551.0,0.78385]
[1748067773385,2.02398819,2551.1,2551.0,0.78385]
[1748067774283,8.19e-06,2551.1,2551.0,5.78385]
[1748067774583,3.2078,2551.6,2551.0,5.78385]
[1748067774584,0.78352,2552.1,2551.8,0.78358]
[1748067774886,0.6844,2552.0,2551.8,0.78358]
[1748067775088,0.6876,2551.9,2551.8,0.78358]
[1748067775579,5.6876,2551.9,2551.8,0.78358]
[1748067775782,5.6876,2551.9,2551.8,0.7836]
[1748067780886,5.6876,2551.9,2551.7,0.78361]
[1748067781091,5.6876,2551.9,2551.6,0.00587832]
[1748067781389,0.78363,2551.7,2551.6,0.78951832]
[1748067781785,5.78363,2551.7,2551.6,0.78951832]
[1748067785398,8.99143,2551.7,2551.6,0.78951832]
[1748067785599,8.99143,2551.7,2551.6,0.00587832]
[1748067786398,25.46945626,2551.7,2551.0,1.17202572]
[1748067786598,3.2078,2551.2,2551.1,0.78381]
[1748067787099,3.9037,2551.2,2551.1,0.78381]
[1748067789601,5.261,2551.2,2551.1,0.78381]
[1748067790902,2.0532,2551.2,2551.1,0.78381]
[1748067793603,2.0532,2551.2,2551.1,2.19301]
[1748067795305,1.3573,2551.2,2551.1,2.19301]
[1748067797003,1.48286754,2551.4,2551.3,0.78375]
[1748067797004,0.00583754,2551.4,2551.3,0.78375]
[1748067797707,0.00583754,2551.4,2551.3,2.12965]
[1748067798208,0.78955754,2551.4,2551.3,0.78375]
[1748067798506,2.18985754,2551.4,2551.3,0.78375]
[1748067799913,1.40613754,2551.4,2551.0,0.6645]
[1748067800207,0.78382,2551.1,2551.0,0.78382]
[1748067803216,2.10741,2551.2,2551.1,0.78381]
[1748067803514,18.42181,2551.2,2551.1,0.78381]
[1748067803711,0.78384,2551.1,2551.0,0.78383]
[1748067803914,18.42181,2551.2,2551.1,0.78381]
[1748067804114,17.638,2551.2,2550.9,0.00587832]
[1748067804413,18.42181,2551.2,2551.1,0.78381]
[1748067804714,0.78383,2551.1,2551.0,0.78382]
[1748067808521,0.78383,2551.1,2550.9,1.35837832]
[1748067808720,0.78383,2551.1,2551.0,0.78385]
[1748067809321,0.78383,2551.1,2550.9,2.14223832]
[1748067809520,0.78383,2551.1,2551.0,0.78384]
[1748067813124,0.78384,2551.0,2550.9,2.14223832]
[1748067813527,0.78384,2551.0,2550.9,0.78973832]
[1748067814726,0.78384,2551.0,2550.9,0.00587832]
[1748067815628,0.78383,2551.1,2551.0,0.78384]
[1748067816722,18.42181,2551.2,2551.1,0.78381]
[1748067816923,19.1998,2551.3,2551.2,0.78378]
[1748067817125,36.8388,2551.3,2551.2,0.78378]
[1748067817323,37.62255,2551.3,2551.2,0.78378]
[1748067818430,36.8388,2551.3,2551.2,0.78378]
[1748067819343,37.62255,2551.3,2551.2,0.78378]
[1748067819542,37.62255,2551.3,2551.1,0.7838]
[1748067819543,0.7838,2551.2,2551.1,0.7838]
[1748067819736,2.0705,2551.2,2551.1,0.7838]
[1748067821045,0.78381,2551.1,2551.0,2.18862]
[1748067821242,1.2867,2551.2,2550.9,0.00587832]
[1748067821437,36.8388,2551.3,2550.9,0.00587832]
[1748067821438,2.08494,2551.0,2550.9,0.00587832]
[1748067821637,2.08494,2551.0,2550.9,0.78975832]
[1748067824147,2.08494,2551.0,2550.9,0.00587832]
[1748067824550,2.08494,2551.0,2550.9,0.78975832]
[1748067825848,2.08494,2551.0,2550.9,0.00587832]
[1748067827250,2.08494,2551.0,2550.9,0.78975832]
[1748067828847,1.3011,2551.0,2550.9,0.78975832]
[1748067829053,0.78384,2551.1,2551.0,0.78384]
[1748067829351,17.64,2551.1,2551.0,0.78384]
[1748067829544,17.64,2551.1,2551.0,1.45134]
[1748067829744,0.7838,2551.2,2551.1,0.78381]
[1748067829944,18.4238,2551.2,2551.1,2.13661]
[1748067831254,19.7907,2551.2,2551.1,2.13661]
[1748067833358,19.0069,2551.2,2550.9,0.78973832]
[1748067833561,0.78384,2551.0,2550.9,1.49493832]
[1748067833953,2.08633,2551.1,2551.0,0.78384]
[1748067838666,0.78384,2551.0,2550.9,2.89932832]
[1748067838859,2.06584,2551.0,2550.9,2.89932832]
[1748067842265,1.282,2551.0,2550.9,2.89932832]
[1748067843870,18.921,2551.0,2550.9,2.89932832]
[1748067844771,1.282,2551.0,2550.9,2.89932832]
[1748067844969,18.921,2551.0,2550.9,2.89932832]
[1748067846259,1.282,2551.0,2550.9,2.89932832]
[1748067846465,18.921,2551.0,2550.9,2.89932832]
[1748067847572,5.64795719,2551.3,2550.9,2.11547832]
[1748067847777,21.57628719,2551.3,2551.2,0.78378]
[1748067848070,39.21528719,2551.3,2551.2,0.78378]
[1748067848874,23.88928719,2551.3,2551.2,0.78378]
[1748067849575,3.04248719,2551.3,2551.2,0.78378]
[1748067849778,18.62038719,2551.3,2551.2,0.78378]
[1748067850170,17.639,2551.3,2551.2,0.78378]
[1748067850570,15.33183754,2551.4,2551.3,0.78375]
[1748067850968,32.97083754,2551.4,2551.3,0.78375]
[1748067851269,33.75455754,2551.4,2551.3,0.78375]
[1748067851468,32.97083754,2551.4,2550.9,3.91887832]
[1748067851670,0.78384,2551.0,2550.9,0.00587832]
[1748067851874,19.31764,2551.0,2550.9,0.00587832]
[1748067852079,24.31764,2551.0,2550.9,0.00587832]
[1748067852279,24.39313626,2551.0,2550.9,0.00587832]
[1748067852480,20.79393626,2551.0,2550.9,0.00587832]
[1748067853277,20.71844,2551.0,2550.9,0.00587832]
[1748067854278,20.79393626,2551.0,2550.9,0.00587832]
[1748067854481,21.90029999,2551.0,2550.9,0.00587832]
[1748067855575,0.784,2550.5,2550.4,2.6468]
[1748067855782,0.784,2550.5,2550.4,1.3404]
[1748067855979,0.784,2550.5,2550.4,0.6921]
[1748067856181,2.0725,2550.5,2550.4,0.6921]
[1748067857585,0.78406,2550.3,2550.2,0.00587832]
[1748067858785,0.78406,2550.3,2550.2,1.36057832]
[1748067859283,17.641,2550.4,2550.2,1.36057832]
[1748067859484,18.42498,2550.6,2550.5,0.78398]
[1748067859783,18.42498,2550.6,2550.4,0.78401]
[1748067859973,18.42498,2550.6,2550.5,1.3016]
[1748067860175,0.78398,2550.6,2550.5,1.3016]
[1748067864188,0.78398,2550.6,2550.2,0.00587832]
[1748067864383,0.78406,2550.3,2550.2,0.00587832]
[1748067865190,0.78405,2550.4,2550.2,0.78994832]
[1748067865488,0.78405,2550.4,2550.3,1.3542]
[1748067867490,0.78405,2550.4,2550.3,2.13826]
[1748067867691,18.42698,2550.6,2550.4,0.78403]
[1748067867896,18.42698,2550.6,2550.4,2.12693]
[1748067868785,18.42698,2550.6,2550.5,1.2819]
[1748067869291,19.70438,2550.6,2550.5,1.2819]
[1748067869486,37.55064,2550.7,2550.5,1.2819]
[1748067869691,36.7667,2550.7,2550.5,1.2819]
[1748067869894,0.78397,2550.6,2550.5,2.06589]
[1748067870989,0.78397,2550.6,2550.5,1.2819]
[1748067872495,0.78397,2550.6,2550.5,2.0659]
[1748067872794,0.78397,2550.6,2550.5,1.2819]
[1748067876198,0.78397,2550.6,2550.5,2.0659]
[1748067876601,0.78397,2550.6,2550.5,1.2819]
[1748067877502,0.78397,2550.6,2550.5,2.0659]
[1748067877987,0.78397,2550.6,2550.5,1.2819]
[1748067879299,2.06617,2550.6,2550.5,1.2819]
[1748067882999,2.06617,2550.6,2550.5,2.0659]
[1748067883403,2.06617,2550.6,2550.5,1.2819]
[1748067883793,0.784,2550.5,2550.4,0.636]
[1748067883999,2.1108,2550.5,2550.4,1.42001]
[1748067884702,2.1108,2550.5,2550.4,4.10606893]
[1748067885407,2.1108,2550.5,2550.4,3.32205893]
[1748067885901,2.1108,2550.5,2550.4,4.10608893]
[1748067888907,1.3268,2550.5,2550.4,4.10608893]
[1748067895514,0.65405808,2550.9,2550.8,0.78391]
[1748067896106,0.65405808,2550.9,2550.8,5.78391]
[1748067896603,0.65405808,2550.9,2550.8,7.75671]
[1748067897013,0.65405808,2550.9,2550.8,9.07576893]
[1748067897704,0.65405808,2550.9,2550.8,24.31876893]
[1748067897907,0.65405808,2550.9,2550.8,25.48914254]
[1748067898205,0.65405808,2551.1,2551.0,0.78384]
[1748067898405,0.65405808,2551.1,2551.0,3.99164]
[1748067899513,0.65405808,2551.1,2551.0,5.31069893]
[1748067902007,1.3983,2551.3,2551.2,0.78378]
[1748067902813,1.3983,2551.3,2551.2,1.43688]
[1748067903019,1.3983,2551.3,2551.2,0.6531]
[1748067903313,1.3983,2551.3,2551.2,1.43688]
[1748067904410,1.3983,2551.3,2551.2,0.6531]
[1748067904614,2.18206,2551.3,2551.1,0.7838]
[1748067904914,2.86176,2551.3,2551.1,0.7838]
[1748067905212,1.2795,2551.2,2551.1,0.7838]
[1748067906812,1.2795,2551.2,2551.0,0.78383]
[1748067907013,0.78382,2551.1,2550.9,1.47255]
[1748067907211,1.3472,2551.0,2550.6,4.37817361]
[1748067907514,18.42289,2550.9,2550.7,0.78392]
[1748067907707,2.13111,2550.8,2550.7,0.78392]
[1748067908015,1.3472,2550.8,2550.7,0.78392]
[1748067915124,18.303,2551.0,2550.9,0.78387]
[1748067915924,18.303,2551.0,2550.8,0.78389]
[1748067916121,1.4084,2550.9,2550.8,0.78389]
[1748067918230,1.4084,2550.9,2550.8,1.42009]
[1748067921528,1.4084,2550.9,2550.8,0.78389]
[1748067922833,3.2078,2551.2,2550.8,1.95977]
[1748067923125,0.00583754,2551.4,2551.3,0.78375]
[1748067923327,1.38043754,2551.4,2551.3,0.78375]
[1748067923924,2.81821562,2551.4,2551.2,3.99156]
[1748067924520,1.3746,2551.3,2551.2,3.99156]
[1748067925531,0.65989562,2551.4,2551.3,0.78375]
[1748067925828,2.03449562,2551.4,2551.3,0.78375]
[1748067926623,1.38043754,2551.4,2551.3,0.78375]
[1748067927225,1.38043754,2551.4,2551.3,2.11928111]
[1748067927728,1.38043754,2551.4,2551.3,4.20298111]
[1748067931231,0.00583754,2551.4,2551.3,4.20298111]
[1748067934636,0.0813338,2551.4,2551.3,4.20298111]
[1748067935638,0.00583754,2551.4,2551.3,4.20298111]
[1748067936732,0.0813338,2551.4,2551.3,4.20298111]
[1748067937536,0.00583754,2551.4,2551.3,4.20298111]
[1748067943235,0.00583754,2551.4,2551.3,2.11928111]
[1748067945247,0.00583754,2551.4,2551.3,4.16948111]
[1748067950339,1.76481719,2552.4,2551.7,1.95903]
[1748067950638,2.0379,2552.1,2552.0,0.78354]
[1748067950846,2.0379,2552.1,2551.3,4.54333111]
[1748067951041,3.2078,2551.9,2551.6,1.17037361]
[1748067951247,34.2329,2551.8,2551.6,1.17037361]
[1748067951444,1.3669,2551.7,2551.6,1.17037361]
[1748067951742,2.84433,2551.7,2551.6,1.17037361]
[1748067952342,0.78366,2551.6,2551.5,0.00587832]
[1748067952545,2.83566,2551.6,2551.5,0.00587832]
[1748067953044,7.83566,2551.6,2551.5,0.00587832]
[1748067954644,7.052,2551.6,2551.5,0.00587832]
[1748067954944,7.052,2551.6,2551.5,0.78956832]
[1748067955543,7.052,2551.6,2551.5,0.00587832]
[1748067956244,7.052,2551.6,2551.5,0.78956832]
[1748067956742,7.052,2551.6,2551.5,0.00587832]
[1748067956938,7.052,2551.6,2551.5,0.78956832]
[1748067957143,2.052,2551.6,2551.5,0.78956832]
[1748067957339,19.687,2551.6,2551.5,0.78956832]
[1748067958148,2.052,2551.6,2551.5,0.78956832]
[1748067958348,19.687,2551.6,2551.5,2.13008813]
[1748067959451,19.0019,2551.6,2551.5,2.13008813]
[1748067962654,1.3669,2551.6,2551.5,2.13008813]
[1748067971157,1.44239626,2551.6,2551.5,2.13008813]
[1748067973053,1.3669,2551.6,2551.5,2.13008813]
[1748067973952,2.15056,2551.6,2551.5,1.34639813]
[1748067974152,2.22605626,2551.6,2551.5,1.34639813]
[1748067974759,1.44239626,2551.6,2551.5,2.13008813]
[1748067975848,1.44239626,2551.6,2551.5,1.34639813]
[1748067975849,2.22605626,2551.6,2551.5,1.34639813]
[1748067976054,10.43385626,2551.6,2551.5,1.34639813]
[1748067976254,10.35836,2551.6,2551.5,1.34639813]
[1748067978064,10.35836,2551.6,2551.5,0.00587832]
[1748067979555,0.78381,2551.1,2551.0,0.78383]
[1748067979863,17.636,2551.1,2551.0,0.78383]
[1748067980359,0.78385,2551.0,2550.9,2.12440398]
[1748067980558,2.10955,2551.0,2550.9,0.78386]
[1748067981159,1.3257,2551.0,2550.9,0.78386]
[1748067981756,0.7053,2551.1,2551.0,0.78385]
[1748067981955,18.3413,2551.1,2551.0,0.78385]
[1748067982362,21.49785808,2551.3,2551.2,0.78378]
[1748067983465,21.49785808,2551.3,2551.2,1.44658]
[1748067985564,22.28160808,2551.3,2551.2,0.6628]
[1748067985764,24.26600808,2551.3,2551.2,0.6628]
[1748067986465,23.61195,2551.3,2551.2,0.6628]
[1748067987155,20.40615,2551.3,2551.2,0.6628]
[1748067988263,20.40615,2551.3,2551.2,2.0183]
[1748067988969,19.6224,2551.3,2551.2,2.80208]
[1748067989164,19.6224,2551.3,2551.2,2.0183]
[1748067989564,19.6224,2551.3,2551.2,2.80208]
[1748067992564,1.9844,2551.3,2551.2,2.80208]
[1748067998973,1.3134,2551.3,2551.2,2.80208]
[1748067999873,2.09715,2551.3,2551.2,2.80208]
[1748068001773,1.3134,2551.3,2551.2,2.80208]
[1748068005177,2.09715,2551.3,2551.2,2.0183]
[1748068005370,0.78378,2551.2,2551.1,0.78379]
[1748068005574,0.78381,2551.1,2551.0,1.42043]
[1748068005970,2.10901,2551.1,2551.0,1.42043]
[1748068006366,1.3252,2551.1,2551.0,1.42043]
[1748068006567,1.3252,2551.1,2551.0,2.76211021]
[1748068006778,1.3252,2551.1,2551.0,4.14111021]
[1748068007778,2.10901,2551.1,2551.0,4.14111021]
[1748068007979,2.10901,2551.1,2551.0,2.76211021]
[1748068008179,2.10901,2551.1,2551.0,2.12551021]
[1748068008879,1.3252,2551.1,2551.0,2.12551021]
[1748068018291,1.3252,2551.1,2551.0,3.50631021]
[1748068018988,18.9632,2551.1,2551.0,3.50631021]
[1748068020589,3.2078,2551.4,2551.1,0.78381]
[1748068020792,3.86185808,2551.4,2551.3,0.78375]
[1748068020994,21.49985808,2551.4,2551.3,0.78375]
[1748068021294,18.29205808,2551.4,2551.3,1.48355]
[1748068021489,0.65405808,2551.4,2551.3,1.48355]
[1748068021690,18.29205808,2551.4,2551.3,1.48355]
[1748068023191,0.65405808,2551.4,2551.3,1.48355]
[1748068023391,0.65405808,2551.4,2551.3,2.82454539]
[1748068024489,0.65405808,2551.4,2551.3,3.994919]
[1748068024689,0.65405808,2551.4,2551.3,5.309819]
[1748068025499,0.65405808,2551.6,2551.5,0.78369]
[1748068026091,0.65405808,2551.6,2551.5,2.78299]
[1748068026597,0.65405808,2551.6,2551.5,4.12398539]
[1748068027197,0.65405808,2551.6,2551.5,3.34029539]
[1748068027393,0.65405808,2551.6,2551.5,1.34099539]
[1748068027594,2.59045808,2551.6,2551.5,1.34099539]
[1748068027894,2.59045808,2551.6,2551.5,0.78369]
[1748068028294,2.59045808,2551.6,2551.5,2.11749]
[1748068030401,1.9364,2551.6,2551.5,0.78369]
[1748068034207,2.72006,2551.6,2551.4,5.3462]
[1748068034508,1.4033,2551.5,2551.4,5.34622]
[1748068037304,0.6556,2551.6,2551.5,0.78369]
[1748068037604,0.6556,2551.6,2551.5,2.07689]
[1748068037805,1.9277,2551.6,2551.5,2.07689]
[1748068039811,19.5637,2551.6,2551.5,2.07689]
[1748068043610,19.5637,2551.6,2551.5,0.78369]
[1748068045512,29.73069,2551.6,2551.1,1.17037361]
[1748068045715,0.78378,2551.3,2551.1,1.17037361]
[1748068045910,1.9684,2551.2,2551.1,1.17037361]
[1748068046101,1.9684,2551.2,2551.0,2.34652096]
[1748068046306,18.9282,2551.1,2551.0,2.34652096]
[1748068046915,19.71201,2551.1,2551.0,1.56270096]
[1748068047520,19.71201,2551.1,2550.9,1.45006]
[1748068047817,2.07705,2551.0,2550.9,0.6662]
[1748068049516,1.2932,2551.0,2550.9,2.790892]
[1748068051021,1.3444,2551.2,2550.9,2.790892]
[1748068051022,0.6752,2551.2,2551.1,0.78381]
[1748068051309,17.636,2551.3,2551.2,0.78378]
[1748068051516,17.636,2551.3,2551.1,0.78379]
[1748068051714,1.4006,2551.2,2551.1,0.78379]
[1748068051915,17.636,2551.3,2551.2,0.78378]
[1748068052116,17.636,2551.3,2551.2,2.09188]
[1748068052621,19.0366,2551.3,2551.2,2.09188]
[1748068054121,19.82035,2551.3,2551.2,1.3081]
[1748068057619,19.82035,2551.3,2551.2,2.09188]
[1748068057820,19.0366,2551.3,2551.2,2.09188]
[1748068058021,1.4006,2551.3,2551.2,2.09188]
[1748068058530,17.638,2551.4,2551.3,0.78375]
[1748068058719,18.42169,2551.5,2551.4,0.78372]
[1748068058918,18.42169,2551.5,2551.4,2.16282]
[1748068059425,19.82369,2551.5,2551.4,1.3791]
[1748068061229,0.78372,2551.4,2551.3,1.43275]
[1748068061431,2.16932,2551.4,2551.3,1.43275]
[1748068062428,1.3856,2551.4,2551.3,1.43275]
[1748068062921,2.16932,2551.4,2551.3,1.43275]
[1748068063329,2.16932,2551.4,2551.3,0.649]
[1748068064025,0.78378,2551.2,2551.1,3.2078]
[1748068064525,0.78385,2551.0,2550.9,1.84960744]
[1748068064719,18.42085,2551.0,2550.9,0.6805]
[1748068064919,0.78388,2550.9,2550.8,1.16910744]
[1748068065125,3.46748,2550.9,2550.8,1.16910744]
[1748068066231,0.78391,2550.8,2550.7,0.00587832]
[1748068066423,2.11931,2550.8,2550.7,0.00587832]
[1748068066921,2.11931,2550.8,2550.7,0.78981832]
[1748068068626,2.11931,2550.8,2550.7,0.00587832]
[1748068070835,2.11931,2550.8,2550.7,0.78981832]
[1748068071227,2.11931,2550.8,2550.7,0.00587832]
[1748068075136,2.11931,2550.8,2550.7,0.78981832]
[1748068077131,0.65405808,2551.2,2550.7,0.00587832]
[1748068077437,35.63132,2551.1,2551.0,0.78385]
[1748068077941,35.63132,2551.1,2550.9,0.78385]
[1748068078141,2.07905,2551.0,2550.9,1.47845]
[1748068079546,0.78385,2551.0,2550.9,1.47845]
[1748068079746,18.42385,2551.0,2550.9,2.14285]
[1748068079946,19.77495,2551.0,2550.9,2.14285]
[1748068080951,19.77495,2551.0,2550.7,0.00587832]
[1748068080952,0.78391,2550.8,2550.7,0.00587832]
[1748068082345,0.78391,2550.8,2550.7,0.78981832]
[1748068084751,0.78391,2550.8,2550.7,0.00587832]
[1748068085438,15.98991,2550.8,2550.7,0.00587832]
[1748068086046,0.78407,2550.3,2550.1,1.83260744]
[1748068086250,0.78407,2550.3,2550.2,0.78408]
[1748068086450,18.42407,2550.3,2550.2,0.78408]
[1748068088151,17.64,2550.3,2550.2,0.78408]
[1748068088753,17.64,2550.3,2550.2,2.15998]
[1748068088948,0.00587832,2550.5,2550.4,0.78403]
[1748068089251,32.85487832,2550.5,2550.4,0.78403]
[1748068090155,33.63887832,2550.5,2550.4,0.78403]
[1748068092456,32.85487832,2550.5,2550.4,0.78403]
[1748068093153,32.85487832,2550.5,2550.4,1.48863]
[1748068094753,33.63887832,2550.5,2550.4,1.48863]
[1748068097057,15.99687832,2550.5,2550.4,1.48863]
[1748068097257,33.63987832,2550.5,2550.4,1.48863]
[1748068099558,34.98487832,2550.5,2550.4,1.48863]
[1748068101761,0.00587832,2550.5,2550.4,1.48863]
[1748068101960,17.64987832,2550.5,2550.4,2.81233]
[1748068106667,0.00587832,2550.5,2550.4,2.81233]
[1748068106967,17.64987832,2550.5,2550.4,2.81233]
[1748068107160,0.00587832,2550.5,2550.4,2.81233]
[1748068107663,0.00587832,2550.5,2550.4,4.15376772]
[1748068110670,0.00587832,2550.5,2550.4,24.36176772]
[1748068112072,0.00587832,2550.5,2550.4,25.92446868]
[1748068114470,0.00587832,2550.5,2550.4,24.36176772]
[1748068120076,18.9663,2551.1,2551.0,0.78385]
[1748068120573,1.3253,2551.1,2551.0,0.78385]
[1748068129979,2.10911,2551.1,2551.0,0.78385]
[1748068130177,1.3253,2551.1,2551.0,0.78385]
[1748068133277,1.3253,2551.1,2551.0,0.78384]
[1748068133579,2.10913,2551.1,2551.0,0.78384]
[1748068134583,1.3253,2551.1,2551.0,0.78384]
[1748068139490,1.3253,2551.1,2551.0,2.12637345]
[1748068144101,2.10911,2551.1,2551.0,1.34253345]
[1748068145303,2.10911,2551.1,2551.0,2.12638345]
[1748068146601,1.3253,2551.1,2551.0,2.12638345]
[1748068149404,2.10911,2551.1,2551.0,2.12638345]
[1748068149795,1.3253,2551.1,2551.0,2.12638345]
[1748068151802,2.10911,2551.1,2551.0,2.12638345]
[1748068152306,1.3253,2551.1,2551.0,2.12638345]
[1748068152805,0.6711,2551.2,2551.1,0.78381]
[1748068153006,0.6711,2551.2,2551.1,2.82931]
[1748068153203,0.6711,2551.2,2551.1,3.53411]
[1748068154406,1.9841,2551.2,2551.1,3.53411]
[1748068158613,2.76788,2551.2,2551.1,3.53411]
[1748068158912,3.42193808,2551.2,2551.1,3.53411]
[1748068159314,2.63815808,2551.2,2551.1,3.53411]
[1748068159914,0.78381,2551.1,2551.0,0.78384]
[1748068160213,1.297,2551.1,2551.0,0.78384]
[1748068161015,1.297,2551.1,2551.0,2.12711462]
[1748068161416,2.08081,2551.1,2551.0,2.12711462]
[1748068161819,1.297,2551.1,2551.0,2.12711462]
[1748068162414,1.95105808,2551.1,2551.0,2.12711462]
[1748068163116,2.73486808,2551.1,2551.0,2.12711462]
[1748068163617,1.95105808,2551.1,2551.0,2.12711462]
[1748068164813,2.73486808,2551.1,2551.0,2.12711462]
[1748068165418,1.95105808,2551.1,2551.0,2.12711462]
[1748068165718,2.73486808,2551.1,2551.0,2.12711462]
[1748068165913,1.95105808,2551.1,2551.0,2.12711462]
[1748068166413,2.73486808,2551.1,2551.0,2.12711462]
[1748068166618,1.95105808,2551.1,2551.0,2.12711462]
[1748068169519,0.65405808,2551.1,2551.0,2.12711462]
[1748068171716,0.65405808,2551.1,2551.0,3.47811462]
[1748068175222,2.0166364,2551.3,2551.2,0.78378]
[1748068175720,2.0166364,2551.3,2551.2,2.12705462]
[1748068175920,2.0166364,2551.3,2551.2,4.10555462]
[1748068179625,1.36257832,2551.3,2551.2,4.10555462]
[1748068180922,1.36257832,2551.3,2551.2,2.80205462]
[1748068182631,1.36257832,2551.3,2551.2,1.45878]
[1748068185623,1.36257832,2551.3,2551.2,2.80023807]
[1748068187421,1.36257832,2551.3,2551.2,1.45878]
[1748068188228,2.14632832,2551.3,2551.2,0.78378]
[1748068188423,2.14632832,2551.3,2551.0,3.2078]
[1748068188625,0.78962832,2551.3,2551.2,0.78378]
[1748068190727,0.78381,2551.1,2551.0,3.2078]
[1748068190930,0.78381,2551.1,2551.0,3.99165]